[Event "Early-Titled-Tuesday-Blitz-February-20-2024"]
[Site "Chess.com"]
[Date "2024.02.20"]
[Round "5"]
[White "Viacheslav92"]
[Black "Dubs123"]
[Result "1-0"]
[WhiteElo "2550"]
[BlackElo "2369"]
[TimeControl "180+1"]
[EndTime "8:57:24 PST"]
[Termination "Viacheslav92 won by resignation"]

1. d4 {[%clk 0:02:56.6]} 1... d5 {[%clk 0:02:55.4]} 2. Bg5 {[%clk 0:02:57]} 2...
h6 {[%clk 0:02:52.9]} 3. Bh4 {[%clk 0:02:56.6]} 3... Nf6 {[%clk 0:02:52.9]} 4.
Bxf6 {[%clk 0:02:52]} 4... exf6 {[%clk 0:02:53.8]} 5. e3 {[%clk 0:02:51.5]} 5...
g6 {[%clk 0:02:48.9]} 6. c4 {[%clk 0:02:52]} 6... c6 {[%clk 0:02:45.8]} 7. cxd5
{[%clk 0:02:35.7]} 7... cxd5 {[%clk 0:02:46.7]} 8. Nc3 {[%clk 0:02:35.5]} 8...
Nc6 {[%clk 0:02:44.4]} 9. g3 {[%clk 0:02:23.9]} 9... Bb4 {[%clk 0:02:36.1]} 10.
Ne2 {[%clk 0:02:23.1]} 10... Bg4 {[%clk 0:02:34.8]} 11. Bg2 {[%clk 0:02:20.7]}
11... Qd7 {[%clk 0:02:30.5]} 12. O-O {[%clk 0:02:18.1]} 12... Ne7 {[%clk
0:02:13.2]} 13. Qb3 {[%clk 0:02:15.9]} 13... Bxc3 {[%clk 0:02:06.1]} 14. Nxc3
{[%clk 0:02:16.8]} 14... Rd8 {[%clk 0:02:05]} 15. Rfc1 {[%clk 0:02:12.3]} 15...
h5 {[%clk 0:01:51.4]} 16. Qb5 {[%clk 0:02:09.4]} 16... h4 {[%clk 0:01:40.8]} 17.
Qxd7+ {[%clk 0:02:04.2]} 17... Rxd7 {[%clk 0:01:39.6]} 18. Nb5 {[%clk
0:01:54.7]} 18... a6 {[%clk 0:01:35.5]} 19. Nc3 {[%clk 0:01:52.1]} 19... hxg3
{[%clk 0:01:32.1]} 20. hxg3 {[%clk 0:01:50.8]} 20... O-O {[%clk 0:01:04.2]} 21.
Na4 {[%clk 0:01:49.3]} 21... Bf5 {[%clk 0:00:51.5]} 22. Rc5 {[%clk 0:01:35.5]}
22... Rb8 {[%clk 0:00:47.2]} 23. Nb6 {[%clk 0:01:29.7]} 23... Rd6 {[%clk
0:00:42.3]} 24. Nxd5 {[%clk 0:01:29.4]} 24... Nxd5 {[%clk 0:00:42.2]} 25. Rxd5
{[%clk 0:01:30.3]} 25... Rxd5 {[%clk 0:00:38.3]} 26. Bxd5 {[%clk 0:01:31.2]}
26... Be6 {[%clk 0:00:35.1]} 27. Bxe6 {[%clk 0:01:28]} 27... fxe6 {[%clk
0:00:36]} 28. Rc1 {[%clk 0:01:27.8]} 28... b6 {[%clk 0:00:20.4]} 29. Rc7 {[%clk
0:01:24]} 29... Rd8 {[%clk 0:00:15.2]} 30. Rc6 {[%clk 0:01:20]} 30... Rb8 {[%clk
0:00:14.1]} 31. Rxe6 {[%clk 0:01:19.6]} 31... Kf7 {[%clk 0:00:14.7]} 32. Rc6
{[%clk 0:01:20.1]} 32... g5 {[%clk 0:00:14.6]} 33. g4 {[%clk 0:01:19.6]} 33...
Ke7 {[%clk 0:00:13.9]} 34. Kg2 {[%clk 0:01:18.8]} 34... a5 {[%clk 0:00:12.4]}
35. Kf3 {[%clk 0:01:16.9]} 35... b5 {[%clk 0:00:11.7]} 36. Ke4 {[%clk 0:01:16]}
36... b4 {[%clk 0:00:11.2]} 37. Ra6 {[%clk 0:01:14.5]} 37... Rb5 {[%clk
0:00:10.3]} 38. d5 {[%clk 0:01:12.8]} 38... Kf7 {[%clk 0:00:08.3]} 39. Kd4
{[%clk 0:01:12.8]} 39... Ke7 {[%clk 0:00:05.6]} 40. e4 {[%clk 0:01:12.5]} 40...
Kd7 {[%clk 0:00:03.9]} 41. Rxf6 {[%clk 0:01:10.9]} 41... b3 {[%clk 0:00:04.2]}
42. a3 {[%clk 0:01:08.4]} 42... Rb8 {[%clk 0:00:02.6]} 43. Rf7+ {[%clk
0:01:00.8]} 43... Ke8 {[%clk 0:00:02.6]} 44. Ra7 {[%clk 0:01:00]} 44... Rc8
{[%clk 0:00:02.6]} 45. Rxa5 {[%clk 0:00:30.6]} 45... Rc2 {[%clk 0:00:02.5]} 46.
Rb5 {[%clk 0:00:29.3]} 46... Rxb2 {[%clk 0:00:02.6]} 47. Ke5 {[%clk 0:00:29.9]}
47... Rb1 {[%clk 0:00:02.2]} 48. a4 {[%clk 0:00:29.6]} 48... b2 {[%clk
0:00:02.5]} 49. f3 {[%clk 0:00:27.9]} 49... Kd7 {[%clk 0:00:02.7]} 50. a5 {[%clk
0:00:27]} 50... Kc7 {[%clk 0:00:03.6]} 51. a6 {[%clk 0:00:26.9]} 51... Ra1
{[%clk 0:00:03.7]} 52. Rb7+ {[%clk 0:00:25.6]} 52... Kc8 {[%clk 0:00:03.7]} 53.
Rxb2 {[%clk 0:00:25.9]} 53... Rxa6 {[%clk 0:00:04.5]} 54. d6 {[%clk 0:00:25.1]}
54... Kd7 {[%clk 0:00:05.4]} 55. Rb7+ {[%clk 0:00:24.4]} 55... Kc6 {[%clk
0:00:05.1]} 56. Rc7+ {[%clk 0:00:24.7]} 56... Kb6 {[%clk 0:00:04.9]} 57. Ke6
{[%clk 0:00:24.2]} 57... Ra8 {[%clk 0:00:04.1]} 58. e5 {[%clk 0:00:22.5]} 58...
Rh8 {[%clk 0:00:04.3]} 59. Rf7 {[%clk 0:00:20.8]} 59... Rh6+ {[%clk 0:00:04.2]}
60. Ke7 {[%clk 0:00:20.8]} 60... Rh8 {[%clk 0:00:04]} 61. e6 {[%clk 0:00:20.9]}
61... Kc6 {[%clk 0:00:04.2]} 62. d7 {[%clk 0:00:21.1]} 62... Kc7 {[%clk
0:00:04.6]} 63. Rg7 {[%clk 0:00:18.9]} 63... Rd8 {[%clk 0:00:02.5]} 64. Rxg5
{[%clk 0:00:18.1]} 64... Rh8 {[%clk 0:00:02.9]} 65. Rc5+ {[%clk 0:00:18.2]}
65... Kb6 {[%clk 0:00:03.5]} 66. d8=Q+ {[%clk 0:00:18.4]} 66... Rxd8 {[%clk
0:00:03.1]} 67. Kxd8 {[%clk 0:00:19.3]} 67... Kxc5 {[%clk 0:00:03.9]} 68. e7
{[%clk 0:00:19.8]} 68... Kd6 {[%clk 0:00:04.8]} 69. e8=Q {[%clk 0:00:20.2]}
69... Kd5 {[%clk 0:00:05.7]} 70. Qe7 {[%clk 0:00:19.8]} 70... Kd4 {[%clk
0:00:06.6]} 71. f4 {[%clk 0:00:20.2]} 71... Kc4 {[%clk 0:00:07.5]} 72. f5 {[%clk
0:00:21.1]} 72... Kd3 {[%clk 0:00:08.4]} 73. f6 {[%clk 0:00:21.7]} 73... Kc3
{[%clk 0:00:09.3]} 74. f7 {[%clk 0:00:22.6]} 74... Kc2 {[%clk 0:00:10.2]} 1-0

[Event "Early-Titled-Tuesday-Blitz-February-20-2024"]
[Site "Chess.com"]
[Date "2024.02.20"]
[Round "5"]
[White "Nemegejas"]
[Black "Salem-AR"]
[Result "1-0"]
[WhiteElo "2810"]
[BlackElo "2985"]
[TimeControl "180+1"]
[EndTime "8:57:26 PST"]
[Termination "Nemegejas won by resignation"]

1. d4 {[%clk 0:03:00.9]} 1... Nf6 {[%clk 0:02:59.4]} 2. c4 {[%clk 0:03:01.5]}
2... g6 {[%clk 0:03:00.1]} 3. Nc3 {[%clk 0:03:01.8]} 3... d5 {[%clk 0:03:00.8]}
4. cxd5 {[%clk 0:03:01.2]} 4... Nxd5 {[%clk 0:03:01.7]} 5. Bd2 {[%clk
0:03:01.8]} 5... c5 {[%clk 0:02:59.9]} 6. Qc1 {[%clk 0:03:00.9]} 6... Nc6 {[%clk
0:02:49.1]} 7. Nxd5 {[%clk 0:03:00.5]} 7... Qxd5 {[%clk 0:02:48.6]} 8. Qxc5
{[%clk 0:03:00.8]} 8... Qxd4 {[%clk 0:02:36.5]} 9. Qxd4 {[%clk 0:02:56.3]} 9...
Nxd4 {[%clk 0:02:37.4]} 10. O-O-O {[%clk 0:02:55.1]} 10... Nc6 {[%clk
0:02:18.3]} 11. Bc3 {[%clk 0:02:54.9]} 11... e5 {[%clk 0:02:12.3]} 12. e3 {[%clk
0:02:49.6]} 12... Be6 {[%clk 0:02:11.6]} 13. Kb1 {[%clk 0:02:47.4]} 13... f6
{[%clk 0:02:11.4]} 14. Bd3 {[%clk 0:02:41.8]} 14... Kf7 {[%clk 0:01:59.9]} 15.
Be4 {[%clk 0:02:30.7]} 15... Rc8 {[%clk 0:01:49.3]} 16. f4 {[%clk 0:02:30.4]}
16... exf4 {[%clk 0:01:44.1]} 17. exf4 {[%clk 0:02:31.3]} 17... Bb4 {[%clk
0:01:16.7]} 18. Ne2 {[%clk 0:01:54.7]} 18... a5 {[%clk 0:00:54.2]} 19. a3 {[%clk
0:01:51.8]} 19... Bxc3 {[%clk 0:00:48.9]} 20. Nxc3 {[%clk 0:01:52.7]} 20... Rhd8
{[%clk 0:00:47.8]} 21. Rhe1 {[%clk 0:01:38.1]} 21... Bb3 {[%clk 0:00:38.9]} 22.
Bd5+ {[%clk 0:01:33.5]} 22... Rxd5 {[%clk 0:00:33.9]} 23. Rxd5 {[%clk
0:01:22.7]} 23... Bxd5 {[%clk 0:00:33.9]} 24. Nxd5 {[%clk 0:01:23.6]} 24... Rd8
{[%clk 0:00:34.3]} 25. Ne3 {[%clk 0:01:00.6]} 25... Rd2 {[%clk 0:00:29.9]} 26.
Kc1 {[%clk 0:01:01.2]} 26... Rd4 {[%clk 0:00:29.4]} 27. g3 {[%clk 0:00:57.3]}
27... h5 {[%clk 0:00:24.6]} 28. Kc2 {[%clk 0:00:56.9]} 28... h4 {[%clk
0:00:21.1]} 29. Kc3 {[%clk 0:00:56.5]} 29... Re4 {[%clk 0:00:18.3]} 30. Kd3
{[%clk 0:00:48.6]} 30... Rd4+ {[%clk 0:00:18.5]} 31. Ke2 {[%clk 0:00:47]} 31...
f5 {[%clk 0:00:15.7]} 32. Rc1 {[%clk 0:00:46]} 32... Ke6 {[%clk 0:00:13.7]} 33.
Rc5 {[%clk 0:00:44.6]} 33... h3 {[%clk 0:00:10.7]} 34. Nc2 {[%clk 0:00:17.7]}
34... Re4+ {[%clk 0:00:10.4]} 35. Kd2 {[%clk 0:00:14.1]} 35... Kd6 {[%clk
0:00:08.3]} 36. Rc3 {[%clk 0:00:13.9]} 36... a4 {[%clk 0:00:06.4]} 37. Rd3+
{[%clk 0:00:14.3]} 37... Kc5 {[%clk 0:00:06.1]} 38. Rd7 {[%clk 0:00:13.6]} 38...
b5 {[%clk 0:00:06.7]} 39. Rh7 {[%clk 0:00:13.3]} 39... Nd4 {[%clk 0:00:04.7]}
40. Nxd4 {[%clk 0:00:12.6]} 40... Rxd4+ {[%clk 0:00:05.4]} 41. Kc2 {[%clk
0:00:12.2]} 41... Rc4+ {[%clk 0:00:05.8]} 42. Kb1 {[%clk 0:00:11.2]} 42... Re4
{[%clk 0:00:06.1]} 43. Rxh3 {[%clk 0:00:11.6]} 43... Kc4 {[%clk 0:00:06.3]} 44.
Ka2 {[%clk 0:00:11.1]} 44... Re2 {[%clk 0:00:04.5]} 45. Rh6 {[%clk 0:00:11.2]}
45... b4 {[%clk 0:00:02.8]} 46. axb4 {[%clk 0:00:12.1]} 46... Kxb4 {[%clk
0:00:03.2]} 47. Rxg6 {[%clk 0:00:09.3]} 47... Rxh2 {[%clk 0:00:03.6]} 48. Rb6+
{[%clk 0:00:07.9]} 48... Kc4 {[%clk 0:00:03.5]} 49. Ra6 {[%clk 0:00:06.9]} 49...
Kb4 {[%clk 0:00:03.1]} 50. Rb6+ {[%clk 0:00:06.9]} 50... Kc4 {[%clk 0:00:02.6]}
51. Rf6 {[%clk 0:00:07.6]} 51... Rg2 {[%clk 0:00:02.5]} 52. Ka3 {[%clk
0:00:04.3]} 52... Rxg3+ {[%clk 0:00:02.2]} 53. Kxa4 {[%clk 0:00:04.7]} 53... Rg1
{[%clk 0:00:02.5]} 54. b3+ {[%clk 0:00:04.5]} 54... Kc3 {[%clk 0:00:02.7]} 55.
Rc6+ {[%clk 0:00:02.8]} 55... Kd4 {[%clk 0:00:02.4]} 56. Rc4+ {[%clk 0:00:03.2]}
56... Ke3 {[%clk 0:00:01.9]} 57. b4 {[%clk 0:00:02.3]} 57... Rg4 {[%clk
0:00:02.4]} 58. b5 {[%clk 0:00:02.4]} 58... Rg1 {[%clk 0:00:01.2]} 59. b6 {[%clk
0:00:02.5]} 59... Rb1 {[%clk 0:00:01.8]} 60. Rb4 {[%clk 0:00:01.5]} 60... Ra1+
{[%clk 0:00:01.8]} 61. Kb5 {[%clk 0:00:02]} 61... Ra8 {[%clk 0:00:02]} 62. b7
{[%clk 0:00:02.5]} 62... Rb8 {[%clk 0:00:02.3]} 63. Ka6 {[%clk 0:00:03]} 63...
Kf3 {[%clk 0:00:02.3]} 64. Ka7 {[%clk 0:00:03.3]} 1-0

[Event "Early-Titled-Tuesday-Blitz-February-20-2024"]
[Site "Chess.com"]
[Date "2024.02.20"]
[Round "5"]
[White "Dewarfd"]
[Black "DonMicheleCorleone"]
[Result "0-1"]
[WhiteElo "2140"]
[BlackElo "2529"]
[TimeControl "180+1"]
[EndTime "8:57:30 PST"]
[Termination "DonMicheleCorleone won on time"]

1. d4 {[%clk 0:02:59.6]} 1... Nf6 {[%clk 0:02:59.4]} 2. e3 {[%clk 0:02:59.9]}
2... d5 {[%clk 0:02:56.7]} 3. Nf3 {[%clk 0:03:00.3]} 3... Bf5 {[%clk 0:02:56]}
4. c4 {[%clk 0:02:53.7]} 4... e6 {[%clk 0:02:54.1]} 5. Bd3 {[%clk 0:02:54]} 5...
Bxd3 {[%clk 0:02:52.5]} 6. Qxd3 {[%clk 0:02:54.2]} 6... c6 {[%clk 0:02:52.8]} 7.
O-O {[%clk 0:02:54.1]} 7... Be7 {[%clk 0:02:53]} 8. b3 {[%clk 0:02:54.3]} 8...
O-O {[%clk 0:02:52.9]} 9. Ba3 {[%clk 0:02:54.2]} 9... Bxa3 {[%clk 0:02:51.5]}
10. Nxa3 {[%clk 0:02:54.5]} 10... Ne4 {[%clk 0:02:50.4]} 11. Nb1 {[%clk
0:02:54]} 11... Nd7 {[%clk 0:02:48.9]} 12. Nc3 {[%clk 0:02:53.7]} 12... Nxc3
{[%clk 0:02:47.6]} 13. Qxc3 {[%clk 0:02:53.7]} 13... Rc8 {[%clk 0:02:43]} 14.
Rfe1 {[%clk 0:02:52.4]} 14... Qb6 {[%clk 0:02:42.1]} 15. Rad1 {[%clk 0:02:33]}
15... Rfe8 {[%clk 0:02:37.7]} 16. e4 {[%clk 0:02:27.4]} 16... dxe4 {[%clk
0:02:31.5]} 17. Rxe4 {[%clk 0:02:27.4]} 17... c5 {[%clk 0:02:30.1]} 18. dxc5
{[%clk 0:02:24.4]} 18... Nxc5 {[%clk 0:02:30]} 19. Red4 {[%clk 0:02:19.4]} 19...
Rcd8 {[%clk 0:02:30]} 20. h3 {[%clk 0:01:42.8]} 20... h6 {[%clk 0:02:25.6]} 21.
b4 {[%clk 0:01:40.5]} 21... Ne4 {[%clk 0:02:22.5]} 22. Qb2 {[%clk 0:01:15.5]}
22... Nf6 {[%clk 0:02:11.7]} 23. c5 {[%clk 0:01:11.2]} 23... Qc7 {[%clk
0:02:12.1]} 24. Rd6 {[%clk 0:01:06.9]} 24... Ne4 {[%clk 0:02:09.5]} 25. R6d4
{[%clk 0:01:03.2]} 25... Rxd4 {[%clk 0:02:07.3]} 26. Qxd4 {[%clk 0:01:02.1]}
26... Nf6 {[%clk 0:02:07.1]} 27. Qd6 {[%clk 0:01:01.7]} 27... Qc8 {[%clk
0:02:00]} 28. Ne5 {[%clk 0:00:57.2]} 28... Nd5 {[%clk 0:01:59.1]} 29. c6 {[%clk
0:00:34.3]} 29... bxc6 {[%clk 0:01:32.1]} 30. Nxc6 {[%clk 0:00:30.8]} 30... Qb7
{[%clk 0:01:32.3]} 31. a3 {[%clk 0:00:19.5]} 31... a6 {[%clk 0:01:27]} 32. Rc1
{[%clk 0:00:18]} 32... Kh7 {[%clk 0:01:21.5]} 33. Na5 {[%clk 0:00:14.6]} 33...
Qb5 {[%clk 0:01:18.4]} 34. Qc6 {[%clk 0:00:13.8]} 34... Rb8 {[%clk 0:00:21.3]}
35. Qxb5 {[%clk 0:00:10.7]} 35... axb5 {[%clk 0:00:21.8]} 36. Rc5 {[%clk
0:00:10]} 36... Kg6 {[%clk 0:00:17.4]} 37. g3 {[%clk 0:00:09.2]} 37... Kf6
{[%clk 0:00:16.5]} 38. Kg2 {[%clk 0:00:08.5]} 38... g5 {[%clk 0:00:15.5]} 39.
Nc6 {[%clk 0:00:06.2]} 39... Rb6 {[%clk 0:00:15.2]} 40. Nd4 {[%clk 0:00:05.4]}
40... Ra6 {[%clk 0:00:14.4]} 41. Nxb5 {[%clk 0:00:05]} 41... Ke7 {[%clk
0:00:14.3]} 42. Nc3 {[%clk 0:00:02.7]} 42... Nb6 {[%clk 0:00:09]} 43. Ra5 {[%clk
0:00:01.8]} 43... Rxa5 {[%clk 0:00:07.3]} 44. bxa5 {[%clk 0:00:02.7]} 44... Nc8
{[%clk 0:00:07.4]} 45. Kf3 {[%clk 0:00:01.8]} 45... Kd6 {[%clk 0:00:07.7]} 46.
Ne4+ {[%clk 0:00:02.3]} 46... Kc6 {[%clk 0:00:07.5]} 47. Nf6 {[%clk 0:00:03]}
47... Kb5 {[%clk 0:00:07.2]} 48. Ng8 {[%clk 0:00:03.3]} 48... h5 {[%clk
0:00:07.7]} 49. Nf6 {[%clk 0:00:02.1]} 49... h4 {[%clk 0:00:07.5]} 50. gxh4
{[%clk 0:00:01.8]} 50... gxh4 {[%clk 0:00:08.4]} 51. Kg4 {[%clk 0:00:02.6]}
51... Ne7 {[%clk 0:00:08.7]} 52. Kxh4 {[%clk 0:00:02.7]} 52... Nf5+ {[%clk
0:00:09.4]} 53. Kg5 {[%clk 0:00:03.1]} 53... Kxa5 {[%clk 0:00:06.2]} 54. Nd7
{[%clk 0:00:03.3]} 54... Ka4 {[%clk 0:00:06]} 55. Ne5 {[%clk 0:00:03.8]} 55...
Nd6 {[%clk 0:00:04.6]} 56. h4 {[%clk 0:00:03.9]} 56... Ne4+ {[%clk 0:00:04]} 57.
Kh6 {[%clk 0:00:01.9]} 57... f6 {[%clk 0:00:03.7]} 58. Ng4 {[%clk 0:00:01.4]}
58... f5 {[%clk 0:00:03.5]} 0-1

[Event "Early-Titled-Tuesday-Blitz-February-20-2024"]
[Site "Chess.com"]
[Date "2024.02.20"]
[Round "5"]
[White "Kotofeyca"]
[Black "martinmena"]
[Result "1-0"]
[WhiteElo "2404"]
[BlackElo "2194"]
[TimeControl "180+1"]
[EndTime "8:57:32 PST"]
[Termination "Kotofeyca won by checkmate"]

1. d4 {[%clk 0:02:55.3]} 1... d5 {[%clk 0:02:57]} 2. c4 {[%clk 0:02:54.9]} 2...
e6 {[%clk 0:02:57]} 3. Nc3 {[%clk 0:02:55]} 3... Nf6 {[%clk 0:02:57.5]} 4. cxd5
{[%clk 0:02:54.1]} 4... exd5 {[%clk 0:02:58.4]} 5. Bg5 {[%clk 0:02:54.6]} 5...
Be7 {[%clk 0:02:58.7]} 6. Qc2 {[%clk 0:02:55]} 6... Nbd7 {[%clk 0:02:56.8]} 7.
e3 {[%clk 0:02:55.4]} 7... c6 {[%clk 0:02:57.4]} 8. Nf3 {[%clk 0:02:55.4]} 8...
O-O {[%clk 0:02:58]} 9. Bd3 {[%clk 0:02:55.5]} 9... Re8 {[%clk 0:02:58.3]} 10.
O-O {[%clk 0:02:55.9]} 10... Nf8 {[%clk 0:02:58.8]} 11. Rab1 {[%clk 0:02:56.2]}
11... a5 {[%clk 0:02:56.9]} 12. a3 {[%clk 0:02:56.2]} 12... Bd6 {[%clk
0:02:56.3]} 13. Bh4 {[%clk 0:02:47.1]} 13... Bg4 {[%clk 0:02:53.9]} 14. b4
{[%clk 0:02:42.6]} 14... axb4 {[%clk 0:02:50.4]} 15. axb4 {[%clk 0:02:43.5]}
15... Bxf3 {[%clk 0:02:46.1]} 16. gxf3 {[%clk 0:02:43.4]} 16... b5 {[%clk
0:02:36.3]} 17. e4 {[%clk 0:02:32.5]} 17... Ng6 {[%clk 0:02:27.3]} 18. Bg3
{[%clk 0:02:12.3]} 18... Bxg3 {[%clk 0:02:25.4]} 19. hxg3 {[%clk 0:02:13.2]}
19... dxe4 {[%clk 0:02:25.5]} 20. Nxe4 {[%clk 0:01:55.9]} 20... Qxd4 {[%clk
0:02:17.7]} 21. Nxf6+ {[%clk 0:01:50.1]} 21... Qxf6 {[%clk 0:02:16.5]} 22. Be4
{[%clk 0:01:40]} 22... Ne5 {[%clk 0:02:05.8]} 23. Bxh7+ {[%clk 0:01:25.5]} 23...
Kh8 {[%clk 0:02:00.1]} 24. f4 {[%clk 0:01:26.4]} 24... Nf3+ {[%clk 0:01:11.9]}
25. Kg2 {[%clk 0:01:20]} 25... Nh4+ {[%clk 0:01:08.9]} 26. gxh4 {[%clk
0:01:09.1]} 26... g6 {[%clk 0:00:58.9]} 27. f5 {[%clk 0:00:43.9]} 27... Kxh7
{[%clk 0:00:31]} 28. fxg6+ {[%clk 0:00:43.6]} 28... fxg6 {[%clk 0:00:31]} 29.
Rh1 {[%clk 0:00:29.8]} 29... Ra3 {[%clk 0:00:12.6]} 30. h5 {[%clk 0:00:19.4]}
30... Qf3+ {[%clk 0:00:12.4]} 31. Kg1 {[%clk 0:00:19.1]} 31... Qg4+ {[%clk
0:00:12.4]} 32. Kf1 {[%clk 0:00:18.6]} 32... Qc4+ {[%clk 0:00:07.2]} 33. Qxc4
{[%clk 0:00:17.7]} 33... bxc4 {[%clk 0:00:07.9]} 34. hxg6+ {[%clk 0:00:17.8]}
34... Kxg6 {[%clk 0:00:08.8]} 35. Rc1 {[%clk 0:00:16.3]} 35... c3 {[%clk
0:00:08.1]} 36. Rh3 {[%clk 0:00:16.4]} 36... Rb8 {[%clk 0:00:02.8]} 37. Rhxc3
{[%clk 0:00:15.9]} 37... Rxc3 {[%clk 0:00:03.4]} 38. Rxc3 {[%clk 0:00:16.8]}
38... Rxb4 {[%clk 0:00:03.7]} 39. Rxc6+ {[%clk 0:00:17.3]} 39... Kf5 {[%clk
0:00:04]} 40. Rc5+ {[%clk 0:00:17.2]} 40... Kf4 {[%clk 0:00:03.9]} 41. Rh5
{[%clk 0:00:16.4]} 41... Kg4 {[%clk 0:00:03.7]} 42. Rc5 {[%clk 0:00:15.1]} 42...
Kf3 {[%clk 0:00:03.4]} 43. Rc3+ {[%clk 0:00:15.2]} 43... Kf4 {[%clk 0:00:03.5]}
44. Kg2 {[%clk 0:00:16.1]} 44... Rb2 {[%clk 0:00:03.3]} 45. Rf3+ {[%clk
0:00:16]} 45... Kg4 {[%clk 0:00:03.4]} 46. Rg3+ {[%clk 0:00:16.9]} 46... Kf4
{[%clk 0:00:03.6]} 47. Rh3 {[%clk 0:00:17.3]} 47... Kg4 {[%clk 0:00:03.8]} 48.
Ra3 {[%clk 0:00:17.8]} 48... Rb4 {[%clk 0:00:03.1]} 49. Ra8 {[%clk 0:00:17.6]}
49... Kf4 {[%clk 0:00:03]} 50. Rf8+ {[%clk 0:00:17.4]} 50... Kg4 {[%clk
0:00:03.2]} 51. f3+ {[%clk 0:00:16.9]} 51... Kg5 {[%clk 0:00:03.3]} 52. Kg3
{[%clk 0:00:17.5]} 52... Kh5 {[%clk 0:00:02.2]} 53. Rf5+ {[%clk 0:00:16.6]}
53... Kg6 {[%clk 0:00:02.1]} 54. Re5 {[%clk 0:00:16.3]} 54... Rb6 {[%clk
0:00:02]} 55. Kg4 {[%clk 0:00:16.1]} 55... Rb4+ {[%clk 0:00:02.2]} 56. f4 {[%clk
0:00:16.3]} 56... Rb6 {[%clk 0:00:02.9]} 57. Rd5 {[%clk 0:00:16]} 57... Kf6
{[%clk 0:00:02.7]} 58. Rh5 {[%clk 0:00:16.1]} 58... Kg6 {[%clk 0:00:03]} 59.
Rg5+ {[%clk 0:00:17]} 59... Kf6 {[%clk 0:00:02.3]} 60. Rh5 {[%clk 0:00:16.4]}
60... Kg6 {[%clk 0:00:02.8]} 61. f5+ {[%clk 0:00:16.9]} 61... Kf6 {[%clk
0:00:03.2]} 62. Rh6+ {[%clk 0:00:17.1]} 62... Kg7 {[%clk 0:00:02.2]} 63. Rxb6
{[%clk 0:00:18]} 63... Kf7 {[%clk 0:00:03]} 64. Kg5 {[%clk 0:00:18.2]} 64... Kg7
{[%clk 0:00:03.9]} 65. Rb7+ {[%clk 0:00:17.9]} 65... Kf8 {[%clk 0:00:04.1]} 66.
Kf6 {[%clk 0:00:17.3]} 66... Ke8 {[%clk 0:00:05]} 67. Ke6 {[%clk 0:00:17.6]}
67... Kd8 {[%clk 0:00:05.9]} 68. Re7 {[%clk 0:00:17.6]} 68... Kc8 {[%clk
0:00:06.8]} 69. f6 {[%clk 0:00:18.1]} 69... Kd8 {[%clk 0:00:05.6]} 70. f7 {[%clk
0:00:19]} 70... Kc8 {[%clk 0:00:05]} 71. f8=Q# {[%clk 0:00:19.9]} 1-0